bitfinex-derivatives/quotes_BTCF0:USTF0_20240910
["timestamp","ask_amount","ask_price","bid_price","bid_amount"]
[1725952054160,0.33801,56812.0,56811.0,0.0004]
[1725952055252,0.33801,56812.0,56811.0,0.05304966]
[1725952056955,0.33801,56812.0,56811.0,0.0004]
[1725952058156,0.33801,56812.0,56811.0,0.05304966]
[1725952060356,0.17801,56812.0,56811.0,0.0004]
[1725952060555,0.090005,56812.0,56811.0,0.0004]
[1725952060752,0.002,56812.0,56811.0,0.0004]
[1725952060954,0.002,56812.0,56811.0,0.248406]
[1725952061250,0.02240953,56817.0,56816.0,0.087998]
[1725952061251,0.0082,56817.0,56816.0,0.087998]
[1725952061564,0.5009,56831.0,56820.0,0.087992]
[1725952061565,0.0082,56821.0,56820.0,0.087992]
[1725952061765,0.0041,56830.0,56820.0,0.0004]
[1725952061963,0.087971,56834.0,56823.0,0.16]
[1725952061964,0.087985,56825.0,56823.0,0.16]
[1725952062158,0.087985,56825.0,56823.0,0.30065097]
[1725952062564,0.087979,56829.0,56825.0,0.087984]
[1725952062770,0.087979,56829.0,56828.0,0.16]
[1725952063360,0.087979,56829.0,56825.0,0.14064134]
[1725952063569,0.08798,56828.0,56827.0,0.16]
[1725952065159,0.08798,56828.0,56827.0,0.2056]
[1725952065766,0.09098,56828.0,56827.0,0.0456]
[1725952066264,0.09298,56828.0,56827.0,0.0456]
[1725952067868,0.09298,56828.0,56822.0,0.087989]
[1725952068067,0.0004,56823.0,56822.0,0.087989]
[1725952068572,0.0004,56823.0,56822.0,0.615949]
[1725952068870,0.0004,56823.0,56822.0,0.66860634]
[1725952069170,0.0004,56823.0,56822.0,0.66960634]
[1725952069469,0.0004,56823.0,56822.0,1.26960634]
[1725952069661,0.0004,56823.0,56822.0,0.14164634]
[1725952069863,0.248388,56823.0,56822.0,0.002]
[1725952070063,0.088388,56823.0,56822.0,0.002]
[1725952070466,0.0004,56823.0,56822.0,0.14264634]
[1725952070964,0.088388,56823.0,56822.0,0.002]
[1725952072660,0.088388,56823.0,56822.0,0.05460874]
[1725952073664,0.176376,56823.0,56822.0,0.05460874]
[1725952073866,0.176376,56823.0,56822.0,0.002]
[1725952074568,0.088388,56823.0,56822.0,0.002]
[1725952093184,0.088388,56823.0,56822.0,0.07222009]
[1725952093574,0.088388,56823.0,56822.0,0.002]
[1725952094287,0.088388,56823.0,56822.0,0.07233119]
[1725952095088,0.088388,56823.0,56822.0,0.002]
[1725952097697,0.088388,56823.0,56822.0,0.2057822]
[1725952097884,0.088388,56823.0,56822.0,0.16590826]
[1725952098890,0.088388,56823.0,56822.0,0.25389726]
[1725952099096,0.088388,56823.0,56822.0,0.137889]
[1725952101185,0.0004,56823.0,56822.0,0.137889]
[1725952101494,0.0004,56823.0,56822.0,0.237889]
[1725952102794,0.088388,56823.0,56822.0,0.237889]
[1725952103181,0.0004,56823.0,56822.0,0.237889]
[1725952103383,0.0004,56823.0,56822.0,1.365849]
[1725952103584,0.0004,56823.0,56822.0,1.56972479]
[1725952103888,0.0004,56823.0,56822.0,0.44176479]
[1725952104089,0.0004,56823.0,56822.0,0.32584101]
[1725952104286,0.0004,56823.0,56822.0,0.44221591]
[1725952105201,0.0004,56823.0,56822.0,0.32584101]
[1725952105792,0.0004,56823.0,56822.0,0.44221691]
[1725952106000,0.0004,56823.0,56822.0,0.3542649]
[1725952106191,0.0004,56823.0,56822.0,1.48219922]
[1725952106391,0.0004,56823.0,56822.0,1.53209922]
[1725952107093,0.0004,56823.0,56822.0,1.62008822]
[1725952107284,0.0082,56830.0,56829.0,0.087978]
[1725952107485,0.087977,56831.0,56830.0,0.087977]
[1725952107891,0.087977,56831.0,56830.0,0.088377]
[1725952108087,0.087977,56831.0,56830.0,0.087977]
[1725952108491,0.0453,56832.0,56829.0,0.1004]
[1725952108800,0.096167,56837.0,56836.0,0.087968]
[1725952108989,0.087967,56837.0,56836.0,0.187968]
[1725952109394,0.087967,56837.0,56836.0,0.188368]
[1725952109589,0.18867332,56840.0,56839.0,0.087963]
[1725952109793,0.13897332,56840.0,56839.0,0.2410313]
[1725952110299,0.087957,56843.0,56840.0,0.087961]
[1725952110489,1.50498,56841.0,56840.0,1.216161]
[1725952110804,1.50498,56841.0,56840.0,1.38145175]
[1725952111191,1.50498,56841.0,56840.0,1.62905977]
[1725952111396,1.50498,56841.0,56840.0,1.425961]
[1725952112499,1.51198,56841.0,56840.0,1.425961]
[1725952113104,1.51198,56841.0,56840.0,1.4959771]
[1725952113604,1.51698,56841.0,56840.0,1.4959771]
[1725952113805,1.51698,56841.0,56840.0,0.8959771]
[1725952113997,1.51698,56841.0,56840.0,0.825961]
[1725952114513,1.51698,56841.0,56840.0,0.088361]
[1725952118996,1.60494,56841.0,56840.0,0.0004]
[1725952120294,1.51698,56841.0,56840.0,0.088361]
[1725952126211,1.51698,56841.0,56840.0,0.1408738]
[1725952126402,1.51698,56841.0,56840.0,0.088361]
[1725952126803,1.51698,56841.0,56840.0,1.2861771]
[1725952127004,1.4553775,56841.0,56840.0,1.441183]
[1725952127209,0.71043852,56841.0,56840.0,1.66122059]
[1725952127509,0.71043852,56841.0,56840.0,1.55589053]
[1725952127703,0.71043852,56841.0,56840.0,1.69227185]
[1725952127899,0.71043852,56841.0,56840.0,1.55589053]
[1725952128095,0.71043852,56841.0,56840.0,1.66091159]
[1725952128301,0.71043852,56841.0,56840.0,1.55589053]
[1725952129009,0.71043852,56841.0,56840.0,1.441183]
[1725952129513,0.59053952,56841.0,56840.0,1.529144]
[1725952129810,0.0088,56853.0,56852.0,0.087943]
[1725952130003,0.0056,56861.0,56852.0,0.16]
[1725952130204,0.0056,56861.0,56858.0,0.0004]
[1725952131512,0.0056,56861.0,56858.0,0.088333]
[1725952131907,0.048,56859.0,56858.0,0.094333]
[1725952132412,0.048,56859.0,56858.0,0.095333]
[1725952133111,0.002,56859.0,56858.0,0.099333]
[1725952133409,0.0056,56861.0,56860.0,0.08793]
[1725952133610,0.0056,56861.0,56860.0,0.08833]
[1725952134403,0.0056,56861.0,56860.0,1.30386]
[1725952134610,0.0056,56861.0,56860.0,0.70786]
[1725952134807,0.0056,56861.0,56860.0,1.30786]
[1725952135014,0.0056,56861.0,56860.0,1.36033103]
[1725952135421,0.0056,56861.0,56860.0,1.36333103]
[1725952136208,0.0056,56861.0,56860.0,1.38084458]
[1725952136710,0.049,56875.0,56872.0,0.087912]
[1725952137015,0.087884,56890.0,56883.0,0.087895]
[1725952137016,0.0473,56884.0,56883.0,0.087895]
[1725952137218,0.0473,56884.0,56883.0,0.248695]
[1725952138910,0.0613,56884.0,56883.0,0.249695]
[1725952139921,0.0753,56884.0,56883.0,0.250695]
[1725952140313,0.0753,56884.0,56883.0,0.090695]
[1725952141511,0.163193,56884.0,56883.0,0.090695]
[1725952141717,0.163193,56884.0,56883.0,0.0028]
[1725952142716,0.323193,56884.0,56883.0,0.0028]
[1725952146911,0.309193,56884.0,56883.0,0.0018]
[1725952147118,0.313193,56884.0,56883.0,0.0018]
[1725952147415,0.301193,56884.0,56883.0,0.0008]
[1725952148219,1.516486,56884.0,56883.0,0.0008]
[1725952148422,0.916486,56884.0,56883.0,0.0008]
[1725952148619,1.516486,56884.0,56883.0,0.0008]
[1725952149218,1.516486,56884.0,56875.0,0.0041]
[1725952149219,0.087906,56876.0,56875.0,0.0041]
[1725952149427,0.087908,56875.0,56873.0,0.08791]
[1725952149622,0.0484,56874.0,56873.0,0.08791]
[1725952150620,0.0484,56874.0,56873.0,0.09591]
[1725952150925,0.0484,56874.0,56873.0,0.008]
[1725952150926,0.136309,56874.0,56873.0,0.008]
[1725952151132,0.0484,56874.0,56873.0,0.09591]
[1725952151431,0.0504,56874.0,56873.0,0.10491]
[1725952152033,0.138309,56874.0,56873.0,0.10491]
[1725952152931,0.138309,56874.0,56873.0,0.10391]
[1725952153532,0.138309,56874.0,56873.0,0.10291]
[1725952156032,0.138309,56874.0,56873.0,0.015]
[1725952159628,0.138309,56874.0,56873.0,0.10291]
[1725952160124,0.138309,56874.0,56873.0,0.17296647]
[1725952160324,0.138309,56874.0,56873.0,0.10291]
[1725952163929,0.138309,56874.0,56873.0,0.015]
[1725952164337,0.138309,56874.0,56873.0,0.08515265]
[1725952164732,0.226218,56874.0,56873.0,0.08515265]
[1725952166137,0.226218,56874.0,56873.0,0.015]
[1725952166940,0.138309,56874.0,56873.0,0.015]
[1725952168748,0.089909,56874.0,56873.0,0.17306265]
[1725952168960,0.089909,56874.0,56873.0,0.10291]
[1725952169545,0.002,56874.0,56873.0,0.10291]
[1725952171345,0.0012,56874.0,56873.0,0.2160345]
[1725952171737,0.0012,56874.0,56873.0,0.36845428]
[1725952173354,0.0012,56874.0,56873.0,0.36865833]
[1725952174345,0.0012,56874.0,56873.0,0.4390307]
[1725952174944,0.0012,56874.0,56873.0,1.4964628]
[1725952177554,0.0012,56874.0,56873.0,1.4961001]
[1725952179358,0.0012,56874.0,56873.0,1.58373915]
[1725952180958,0.0012,56874.0,56873.0,1.53633915]
[1725952181252,0.0041,56881.0,56880.0,0.087899]
[1725952181557,0.087897,56882.0,56880.0,0.07050966]
[1725952181754,0.087897,56882.0,56881.0,0.0004]
[1725952182957,1.463195,56882.0,56881.0,0.0004]
[1725952183361,1.466195,56882.0,56881.0,0.0004]
[1725952183663,0.866195,56882.0,56881.0,0.0004]
[1725952183960,1.466195,56882.0,56881.0,0.0004]
[1725952184655,0.866195,56882.0,56881.0,0.0004]
[1725952184959,0.867195,56882.0,56881.0,0.0004]
[1725952185256,0.339795,56882.0,56881.0,0.0004]
[1725952185655,0.179795,56882.0,56881.0,0.0004]
[1725952185953,0.707195,56882.0,56881.0,0.0004]
[1725952186258,0.867195,56882.0,56881.0,0.0004]
[1725952187554,0.867195,56882.0,56876.0,0.05258446]
[1725952187555,0.5274,56881.0,56876.0,0.05258446]
[1725952187758,0.1604,56877.0,56874.0,0.05260712]
[1725952187961,0.0004,56875.0,56873.0,0.05260712]
[1725952188258,0.087913,56871.0,56870.0,0.07010966]
[1725952188464,0.176226,56871.0,56870.0,0.0526096]
[1725952188657,1.215833,56871.0,56870.0,0.0526096]
[1725952188954,0.087915,56870.0,56869.0,0.0526096]
[1725952189155,0.296015,56870.0,56869.0,0.0526096]
[1725952189352,0.08792,56867.0,56866.0,0.0526096]
[1725952189551,0.08832,56867.0,56866.0,0.0526096]
[1725952190348,0.087921,56866.0,56865.0,0.0526096]
[1725952190552,0.088321,56866.0,56865.0,0.0526096]
[1725952190765,0.181721,56866.0,56865.0,0.0526096]
[1725952190957,0.087923,56865.0,56864.0,0.0526096]
[1725952191259,0.088323,56865.0,56864.0,0.0526096]
[1725952192056,0.089323,56865.0,56864.0,0.0626096]
[1725952192466,0.089323,56865.0,56864.0,0.01]
[1725952193758,0.090323,56865.0,56864.0,0.021]
[1725952194656,0.10806473,56865.0,56864.0,0.021]
[1725952195251,0.090323,56865.0,56864.0,0.021]
[1725952196659,0.0024,56865.0,56864.0,0.108924]
[1725952197362,0.090323,56865.0,56864.0,0.108924]
[1725952200561,0.0024,56865.0,56864.0,0.268924]
[1725952200760,0.0024,56865.0,56864.0,0.38190625]
[1725952200967,0.087909,56875.0,56872.0,0.087912]
[1725952201263,0.0483,56876.0,56875.0,0.087907]
[1725952201462,0.32828,56882.0,56876.0,0.087906]
[1725952201663,0.32828,56882.0,56876.0,0.15793773]
[1725952201664,0.3274,56882.0,56876.0,0.15793773]
[1725952201863,0.0057,56883.0,56876.0,0.15793773]
[1725952202064,0.02368879,56883.0,56876.0,0.087906]
[1725952202371,0.0057,56883.0,56882.0,0.087896]
[1725952202560,0.0016,56883.0,56882.0,0.30081723]
[1725952203072,0.0016,56883.0,56882.0,0.248296]
[1725952203662,0.0016,56883.0,56882.0,0.088296]
[1725952204165,0.0016,56883.0,56882.0,0.248296]
[1725952204671,0.0026,56883.0,56882.0,0.248296]
[1725952205563,0.0046,56883.0,56882.0,0.248296]
[1725952206063,0.0046,56883.0,56882.0,0.088296]
[1725952211364,0.0046,56883.0,56882.0,0.14080658]
[1725952211565,0.0046,56883.0,56882.0,0.22870258]
[1725952211777,0.0046,56883.0,56882.0,1.303592]
[1725952211961,0.0046,56883.0,56882.0,1.391488]
[1725952212164,0.0041,56890.0,56889.0,0.087886]
[1725952212472,0.087871,56899.0,56889.0,0.248686]
[1725952212773,0.087871,56899.0,56898.0,0.087872]
[1725952213069,0.01793319,56903.0,56902.0,0.087865]
[1725952213267,0.134363,56904.0,56902.0,0.088665]
[1725952213469,0.134363,56904.0,56903.0,0.0008]
[1725952213657,0.134363,56904.0,56902.0,0.087865]
[1725952214463,0.148363,56904.0,56902.0,0.088865]
[1725952214969,0.101863,56904.0,56902.0,0.088865]
[1725952215165,0.101863,56904.0,56903.0,0.087864]
[1725952215371,0.12028117,56904.0,56903.0,0.087864]
[1725952215873,0.13228117,56904.0,56903.0,0.088864]
[1725952216374,0.12028117,56904.0,56903.0,0.087864]
[1725952216673,0.13228117,56904.0,56903.0,0.088864]
[1725952217467,0.11828117,56904.0,56903.0,0.088864]
[1725952217668,0.13228117,56904.0,56903.0,0.089864]
[1725952219480,0.113863,56904.0,56903.0,0.089864]
[1725952222785,0.113863,56904.0,56903.0,0.002]
[1725952222786,0.361726,56904.0,56903.0,0.002]
[1725952222977,1.488926,56904.0,56903.0,0.002]
[1725952224084,1.576789,56904.0,56903.0,0.002]
[1725952224389,0.087875,56896.0,56895.0,0.0082]
[1725952224573,0.087881,56892.0,56887.0,0.0082]
[1725952224779,0.087887,56888.0,56881.0,0.0082]
[1725952224978,0.087887,56888.0,56883.0,0.16]
[1725952225481,0.087889,56887.0,56886.0,0.08789]
[1725952226988,0.092889,56887.0,56886.0,0.08789]
[1725952227382,0.095889,56887.0,56886.0,0.08789]
[1725952228185,0.008,56887.0,56886.0,0.24789]
[1725952230691,0.008,56887.0,56886.0,0.29409]
[1725952235087,0.0052,56887.0,56886.0,1.69356148]
[1725952235398,0.0041,56896.0,56895.0,0.087876]
[1725952235587,0.0462,56900.0,56895.0,0.087876]
[1725952235588,0.0462,56900.0,56899.0,0.08787]
[1725952235789,0.0462,56900.0,56899.0,0.30115481]
[1725952236494,0.0462,56900.0,56899.0,0.14115481]
[1725952236689,0.0462,56900.0,56899.0,0.30115481]
[1725952236885,0.087868,56901.0,56899.0,0.21328481]
[1725952237086,0.087868,56901.0,56900.0,0.088669]
[1725952237288,0.087868,56901.0,56900.0,0.14115381]
[1725952238100,0.101868,56901.0,56900.0,0.14115381]
[1725952239292,0.014,56901.0,56900.0,0.088669]
[1725952239492,0.022,56901.0,56900.0,0.3337074]
[1725952239698,0.021,56901.0,56900.0,0.33468635]
[1725952239998,0.021,56901.0,56900.0,0.33566087]
[1725952240193,0.021,56901.0,56900.0,0.22324797]
[1725952240396,0.021,56901.0,56900.0,0.33565922]
[1725952240997,0.008,56901.0,56900.0,0.33465922]
[1725952241188,0.018,56901.0,56900.0,0.33565922]
[1725952241393,0.018,56901.0,56900.0,0.663009]
[1725952243287,0.018,56901.0,56900.0,0.71547241]
[1725952244698,0.018,56901.0,56900.0,0.18823241]
[1725952245296,0.018,56901.0,56900.0,0.135769]
[1725952246198,0.018,56901.0,56900.0,0.15344729]
[1725952247797,0.018,56901.0,56900.0,0.090669]
[1725952248700,0.018,56901.0,56900.0,0.14313241]
[1725952249095,0.018,56901.0,56900.0,0.30313241]
[1725952249294,0.018,56901.0,56900.0,0.250669]
[1725952252212,0.018,56901.0,56900.0,0.30313241]
[1725952254206,0.018,56901.0,56900.0,0.14313241]
[1725952254502,0.105867,56901.0,56900.0,0.0028]
[1725952259012,0.12345823,56901.0,56900.0,0.0028]
[1725952259506,0.21132523,56901.0,56900.0,0.0028]
[1725952260415,0.73856523,56901.0,56900.0,0.0028]
[1725952260605,0.17575,56896.0,56895.0,0.0008]
[1725952261208,1.438405,56896.0,56895.0,0.0008]
[1725952261409,1.438405,56896.0,56887.0,0.06066341]
[1725952261410,0.087887,56888.0,56887.0,0.06066341]
[1725952261610,0.087889,56887.0,56886.0,0.05246341]
[1725952261812,0.087892,56885.0,56884.0,0.14035541]
[1725952262007,0.0472,56887.0,56883.0,0.05255102]
[1725952262215,0.135393,56884.0,56883.0,0.05255102]
[1725952262414,0.295393,56884.0,56883.0,0.05256126]
[1725952262615,0.295393,56884.0,56878.0,0.087903]
[1725952262616,0.2075,56884.0,56881.0,0.05256126]
[1725952263012,0.087896,56882.0,56881.0,0.05256126]
[1725952263510,0.087896,56882.0,56875.0,0.05256126]
[1725952263807,0.087896,56882.0,56874.0,0.087909]
[1725952263808,0.087905,56877.0,56874.0,0.087909]
[1725952264216,0.16,56880.0,56873.0,0.05256126]
[1725952264416,0.16,56880.0,56879.0,0.0008]
[1725952264907,0.247899,56880.0,56879.0,0.0008]
[1725952265419,0.863238,56880.0,56879.0,0.0008]
[1725952266236,1.463238,56880.0,56879.0,0.0008]
[1725952266436,1.463238,56880.0,56875.0,0.014]
[1725952266642,0.335812,56876.0,56875.0,0.014]
[1725952266831,0.087918,56868.0,56867.0,0.0082]
[1725952267033,0.087921,56866.0,56862.0,0.14048826]
[1725952267235,0.087921,56866.0,56862.0,0.087927]
[1725952267439,0.2064,56867.0,56860.0,0.05256126]
[1725952267633,0.087929,56861.0,56860.0,0.08793]
[1725952267833,0.087923,56865.0,56860.0,0.16]
[1725952268039,0.087923,56865.0,56864.0,0.0008]
[1725952268345,0.087923,56865.0,56860.0,0.16]
[1725952268346,0.087924,56864.0,56863.0,0.087926]
[1725952268534,0.088324,56864.0,56863.0,0.087926]
[1725952270038,0.090324,56864.0,56863.0,0.115926]
[1725952271342,0.0024,56864.0,56863.0,0.115926]
[1725952271542,0.0024,56864.0,56863.0,0.275926]
[1725952271933,0.0024,56864.0,56863.0,0.028]
[1725952271934,0.090324,56864.0,56863.0,0.028]
[1725952277235,0.178248,56864.0,56863.0,0.028]
[1725952278540,0.090324,56864.0,56863.0,0.028]
[1725952279144,0.090324,56864.0,56863.0,0.115926]
[1725952279935,0.0024,56864.0,56863.0,0.275926]
[1725952284838,0.0024,56864.0,56863.0,0.363852]
[1725952285049,0.0024,56864.0,56863.0,1.491412]
[1725952286246,0.0041,56871.0,56870.0,0.087915]
[1725952286443,0.087912,56873.0,56870.0,0.248315]
[1725952286747,0.087912,56873.0,56871.0,0.087913]
[1725952286943,0.087912,56872.0,56871.0,0.28707299]
[1725952287345,0.087912,56872.0,56871.0,0.19915999]
[1725952288049,0.087913,56871.0,56870.0,0.088314]
[1725952288249,0.089313,56871.0,56870.0,0.101314]
[1725952288942,0.088313,56871.0,56870.0,0.088314]
[1725952289553,0.22702927,56871.0,56870.0,0.088314]
[1725952289743,0.22702927,56871.0,56870.0,0.101314]
[1725952289744,0.22802927,56871.0,56870.0,0.101314]
[1725952290151,0.43610368,56871.0,56870.0,0.0134]
[1725952290352,0.43710368,56871.0,56870.0,0.0264]
[1725952291244,1.13535073,56871.0,56862.0,0.2043368]
[1725952291442,0.0004,56863.0,56862.0,0.2881638]
[1725952291941,0.0004,56863.0,56862.0,0.8157638]
[1725952292143,0.0004,56863.0,56862.0,0.087927]
[1725952292342,0.34719068,56863.0,56862.0,0.087927]
[1725952293147,0.34719068,56863.0,56862.0,0.101927]
[1725952293450,0.34719068,56863.0,56862.0,0.106927]
[1725952293953,0.20847441,56863.0,56862.0,0.106927]
[1725952294149,0.20947441,56863.0,56862.0,0.106927]
[1725952294541,0.0024,56863.0,56862.0,0.095927]
[1725952296448,0.0024,56863.0,56862.0,0.31441898]
[1725952297449,0.0024,56863.0,56862.0,0.31466936]
[1725952297648,0.0024,56863.0,56862.0,0.20938033]
[1725952298651,0.0024,56863.0,56862.0,0.20935528]
[1725952300959,0.183917,56869.0,56867.0,0.087918]
[1725952301156,0.183917,56869.0,56868.0,0.0004]
[1725952301460,0.183917,56869.0,56868.0,0.088318]
[1725952301853,0.183917,56869.0,56868.0,0.20198657]
[1725952302359,0.185917,56869.0,56868.0,0.20998657]
[1725952303260,0.098,56869.0,56868.0,0.20998657]
[1725952303456,0.002,56869.0,56868.0,0.36998657]
[1725952303653,0.002,56869.0,56868.0,0.45790457]
[1725952303853,0.002,56869.0,56868.0,0.59327799]
[1725952304563,0.002,56869.0,56868.0,0.59321304]
[1725952304761,0.002,56869.0,56868.0,1.72073304]
[1725952308555,0.002,56869.0,56868.0,1.72015307]
[1725952308965,0.002,56869.0,56868.0,1.73862494]
[1725952309558,0.002,56869.0,56868.0,1.13862494]
[1725952309967,0.087901,56879.0,56876.0,0.087905]
[1725952310167,0.087901,56879.0,56878.0,0.0004]
[1725952311167,0.088901,56879.0,56878.0,0.0004]
[1725952311362,0.088901,56879.0,56878.0,0.0034]
[1725952311563,0.088901,56879.0,56878.0,0.16140462]
[1725952311964,0.087901,56879.0,56878.0,0.16140462]
[1725952312161,0.087901,56879.0,56878.0,0.16540462]
[1725952314464,0.087901,56879.0,56878.0,0.07750162]
[1725952314979,0.087901,56879.0,56878.0,0.095303]
[1725952315362,0.087901,56879.0,56878.0,0.16540462]
[1725952316774,0.087901,56879.0,56878.0,0.095303]
[1725952318372,0.1405,56881.0,56878.0,0.0074]
[1725952318570,0.1405,56881.0,56880.0,0.087899]
[1725952318773,0.1405,56881.0,56880.0,0.088299]
[1725952319571,0.00088,56894.0,56891.0,0.087882]
[1725952319767,0.0499,56897.0,56891.0,0.30081631]
[1725952320080,0.0472,56902.0,56901.0,0.087867]
[1725952320278,0.0472,56902.0,56901.0,0.248667]
[1725952321671,0.0602,56902.0,56901.0,0.249667]
[1725952321972,0.0742,56902.0,56901.0,0.250667]
[1725952322179,0.0742,56902.0,56901.0,0.090667]
[1725952333590,0.027,56902.0,56901.0,0.338534]
[1725952335287,0.014,56902.0,56901.0,0.337534]
[1725952335491,0.014,56902.0,56901.0,0.338534]
[1725952335492,0.025,56902.0,56901.0,0.338534]
[1725952337792,0.025,56902.0,56901.0,0.250667]
[1725952345293,0.112865,56902.0,56901.0,0.0028]
[1725952346601,1.240105,56902.0,56901.0,0.0028]
[1725952346902,1.47077,56902.0,56901.0,0.0028]
[1725952347293,1.382905,56902.0,56901.0,0.0028]
[1725952349498,0.782905,56902.0,56901.0,0.0028]
[1725952351023,0.87077,56902.0,56901.0,0.0028]
[1725952353806,0.34353,56902.0,56901.0,0.0028]
[1725952360311,0.44353,56902.0,56901.0,0.0028]
[1725952360811,0.355665,56902.0,56901.0,0.0028]
[1725952363114,0.255665,56902.0,56901.0,0.090667]
[1725952364220,0.025,56902.0,56901.0,0.090667]
[1725952367721,0.112865,56902.0,56901.0,0.090667]
[1725952372220,0.112865,56902.0,56901.0,0.0028]
[1725952373223,0.112865,56902.0,56901.0,0.07278777]
[1725952374226,0.112865,56902.0,56901.0,0.0028]
[1725952374625,0.112865,56902.0,56901.0,0.07291676]
[1725952375329,0.112865,56902.0,56901.0,0.0028]
[1725952376519,0.112865,56902.0,56901.0,0.090667]
[1725952380730,0.025,56902.0,56901.0,0.090667]
[1725952386034,0.025,56902.0,56901.0,0.178534]
[1725952386330,0.025,56902.0,56901.0,0.24865466]
[1725952386537,0.025,56902.0,56901.0,1.465774]
[1725952388126,0.025,56902.0,56901.0,0.090667]
[1725952388327,0.024,56902.0,56901.0,0.250667]
[1725952389027,0.023,56902.0,56901.0,0.250667]
[1725952389224,0.023,56902.0,56901.0,0.090667]
[1725952389547,0.270865,56902.0,56901.0,0.0028]
[1725952390238,0.210865,56902.0,56901.0,0.0028]
[1725952391041,0.087875,56896.0,56893.0,0.05257077]
[1725952391243,0.087875,56896.0,56893.0,0.05262031]
[1725952391244,0.1,56894.0,56893.0,0.05262031]
[1725952391427,0.1,56894.0,56892.0,0.14050131]
[1725952391833,0.0911,56895.0,56892.0,0.14050131]
[1725952392038,0.0911,56895.0,56894.0,0.07088025]
[1725952392433,0.0911,56895.0,56894.0,0.0008]
[1725952393347,0.0981,56895.0,56894.0,0.0008]
[1725952393638,0.185976,56895.0,56894.0,0.0008]
[1725952395128,0.185976,56895.0,56894.0,0.07093422]
[1725952395336,0.185976,56895.0,56894.0,0.05340837]
[1725952395531,0.185976,56895.0,56894.0,0.0008]
[1725952395737,0.185976,56895.0,56894.0,0.05340837]
[1725952396441,0.185976,56895.0,56894.0,0.0008]
[1725952397142,0.185976,56895.0,56894.0,0.05340837]
[1725952398542,0.185976,56895.0,56894.0,0.0008]
[1725952399244,0.185976,56895.0,56894.0,0.05337468]
[1725952402350,0.185976,56895.0,56894.0,0.0008]
[1725952404152,0.185976,56895.0,56894.0,0.088678]
[1725952404652,0.185976,56895.0,56894.0,0.14125268]
[1725952406351,0.185976,56895.0,56894.0,0.088678]
[1725952410746,0.273852,56895.0,56894.0,0.0008]
[1725952416761,0.185976,56895.0,56894.0,0.05337468]
[1725952416948,0.185976,56895.0,56894.0,0.0008]
[1725952418463,0.185976,56895.0,56894.0,0.07093422]
[1725952419456,0.185976,56895.0,56894.0,0.0008]
[1725952419954,0.185976,56895.0,56894.0,0.07104806]
[1725952422363,0.21446903,56895.0,56894.0,0.0008]
[1725952423368,0.12336903,56895.0,56894.0,0.0008]
[1725952426867,0.22873636,56895.0,56894.0,0.0008]
[1725952429164,0.20024333,56895.0,56894.0,0.0008]
[1725952429361,0.094876,56895.0,56894.0,0.07104806]
[1725952430164,0.094876,56895.0,56894.0,0.088678]
[1725952431364,0.094876,56895.0,56894.0,0.15895001]
[1725952431668,0.094876,56895.0,56894.0,0.15895244]
[1725952432062,0.094876,56895.0,56894.0,0.088678]
[1725952436874,0.094876,56895.0,56894.0,0.15896013]
[1725952437370,0.094876,56895.0,56894.0,0.088678]
[1725952437371,0.22873563,56895.0,56894.0,0.088678]
[1725952438667,0.1233683,56895.0,56894.0,0.088678]
[1725952439471,0.22873563,56895.0,56894.0,0.088678]
[1725952442276,0.31661163,56895.0,56894.0,0.0008]
[1725952442580,0.2112443,56895.0,56894.0,0.0008]
[1725952444471,0.182752,56895.0,56894.0,0.07108213]
[1725952446179,0.182752,56895.0,56894.0,0.0008]
[1725952448474,0.094876,56895.0,56894.0,0.0008]
[1725952448678,0.007,56895.0,56894.0,0.088678]
[1725952448881,0.007,56895.0,56894.0,0.34476777]
[1725952449078,0.0042,56895.0,56894.0,0.43264577]
[1725952449281,0.0042,56895.0,56894.0,1.55992577]
[1725952449481,0.0042,56895.0,56894.0,1.66527368]
[1725952449896,0.0042,56895.0,56894.0,1.69476831]
[1725952450196,0.0049,56902.0,56894.0,1.60689031]
[1725952450483,0.0008,56902.0,56901.0,0.188267]
[1725952450688,0.0008,56902.0,56901.0,0.30175677]
[1725952450881,0.0008,56902.0,56901.0,1.42899677]
[1725952451475,0.0038,56902.0,56901.0,1.36809636]
[1725952452389,0.0158,56902.0,56901.0,1.316507]
[1725952452880,0.0118,56902.0,56901.0,1.316507]
[1725952453082,0.0238,56902.0,56901.0,1.317507]
[1725952454406,0.0238,56902.0,56901.0,1.33587119]
[1725952460601,0.0238,56902.0,56901.0,0.82373819]
[1725952460789,0.0238,56902.0,56901.0,1.49385733]
[1725952463497,0.0238,56902.0,56901.0,1.42373819]
[1725952464598,0.0238,56902.0,56901.0,0.82373819]
[1725952465800,0.0238,56902.0,56901.0,0.29649819]
[1725952466399,0.0238,56902.0,56901.0,0.38414712]
[1725952468509,0.0238,56902.0,56901.0,0.4959631]
[1725952471810,0.0238,56902.0,56901.0,0.3080961]
[1725952472001,0.0238,56902.0,56901.0,0.20863119]
[1725952472508,0.0238,56902.0,56901.0,0.408163]
[1725952472811,0.0238,56902.0,56901.0,0.49603]
[1725952473011,0.0238,56902.0,56901.0,0.29649819]
[1725952473309,0.0238,56902.0,56901.0,0.49605762]
[1725952474012,0.0238,56902.0,56901.0,0.40840869]
[1725952474408,0.0238,56902.0,56901.0,0.29649819]
[1725952475306,0.0238,56902.0,56901.0,0.82373819]
[1725952475504,0.0238,56902.0,56901.0,1.59916142]
[1725952475711,0.0238,56902.0,56901.0,1.53568732]
[1725952476410,0.0238,56902.0,56901.0,1.72888985]
[1725952477007,0.0118,56902.0,56901.0,1.62255432]
[1725952477212,0.0228,56902.0,56901.0,1.62355432]